[Event "Early-Titled-Tuesday-Blitz-October-17-2023"]
[Site "Chess.com"]
[Date "2023.10.17"]
[Round "4"]
[White "Heinza9"]
[Black "Alenzer"]
[Result "1-0"]
[WhiteElo "2297"]
[BlackElo "2105"]
[TimeControl "180+1"]
[EndTime "8:43:20 PDT"]
[Termination "Heinza9 won by resignation"]

1. e4 {[%clk 0:03:00.9]} 1... c5 {[%clk 0:02:59.2]} 2. Nf3 {[%clk 0:03:00.1]}
2... e6 {[%clk 0:02:59.2]} 3. b3 {[%clk 0:02:59.5]} 3... d5 {[%clk 0:02:58.5]}
4. exd5 {[%clk 0:02:58.9]} 4... exd5 {[%clk 0:02:58.8]} 5. Bb2 {[%clk
0:02:59.2]} 5... Nc6 {[%clk 0:02:59.3]} 6. d4 {[%clk 0:02:59]} 6... Nf6 {[%clk
0:02:59.2]} 7. Bd3 {[%clk 0:02:58.4]} 7... Bd6 {[%clk 0:02:56.4]} 8. h3 {[%clk
0:02:57.1]} 8... O-O {[%clk 0:02:56.2]} 9. O-O {[%clk 0:02:57.4]} 9... cxd4
{[%clk 0:02:56.5]} 10. Nxd4 {[%clk 0:02:57.2]} 10... Nb4 {[%clk 0:02:49.2]} 11.
Be2 {[%clk 0:02:47.4]} 11... Re8 {[%clk 0:02:42]} 12. Bf3 {[%clk 0:02:40]} 12...
Nc6 {[%clk 0:02:27.5]} 13. Ne2 {[%clk 0:02:16.6]} 13... Ne5 {[%clk 0:02:12.6]}
14. Nd4 {[%clk 0:02:14.7]} 14... Nxf3+ {[%clk 0:02:11.2]} 15. Nxf3 {[%clk
0:02:14.7]} 15... Be6 {[%clk 0:01:52.9]} 16. Re1 {[%clk 0:02:12.5]} 16... Ne4
{[%clk 0:01:52.9]} 17. Nbd2 {[%clk 0:02:11.3]} 17... Nxd2 {[%clk 0:01:27.1]} 18.
Qxd2 {[%clk 0:02:08]} 18... Rc8 {[%clk 0:01:23.5]} 19. Qd4 {[%clk 0:01:51.4]}
19... Bf8 {[%clk 0:01:06.5]} 20. Re2 {[%clk 0:01:46.6]} 20... a6 {[%clk
0:01:05.8]} 21. Rae1 {[%clk 0:01:44.1]} 21... Qd7 {[%clk 0:00:56.2]} 22. Ne5
{[%clk 0:01:42.1]} 22... Qe7 {[%clk 0:00:48]} 23. c4 {[%clk 0:01:29.1]} 23...
dxc4 {[%clk 0:00:46]} 24. Nxc4 {[%clk 0:01:28.9]} 24... Qg5 {[%clk 0:00:43.4]}
25. Re5 {[%clk 0:01:22.5]} 25... Qg6 {[%clk 0:00:37.9]} 26. Qh4 {[%clk
0:00:40.2]} 26... Be7 {[%clk 0:00:31.6]} 27. Qg3 {[%clk 0:00:32.4]} 27... Qxg3
{[%clk 0:00:30.6]} 28. fxg3 {[%clk 0:00:32.7]} 28... Bf6 {[%clk 0:00:31.1]} 29.
R5e2 {[%clk 0:00:28.7]} 29... Bxb2 {[%clk 0:00:27.5]} 30. Nxb2 {[%clk
0:00:27.5]} 30... Kf8 {[%clk 0:00:25.6]} 31. Nd3 {[%clk 0:00:26.1]} 31... Bd7
{[%clk 0:00:24.5]} 32. Ne5 {[%clk 0:00:25.5]} 32... Bb5 {[%clk 0:00:23.2]} 33.
Re3 {[%clk 0:00:25]} 33... Rc2 {[%clk 0:00:20.9]} 34. Rf3 {[%clk 0:00:23]} 34...
f6 {[%clk 0:00:20.8]} 35. a4 {[%clk 0:00:20.4]} 35... Bc6 {[%clk 0:00:17.3]} 36.
Nxc6 {[%clk 0:00:20.1]} 36... Rxc6 {[%clk 0:00:17.4]} 37. Rxe8+ {[%clk
0:00:19.5]} 37... Kxe8 {[%clk 0:00:17.9]} 38. Rd3 {[%clk 0:00:19.1]} 38... Ke7
{[%clk 0:00:17.7]} 39. Kf2 {[%clk 0:00:19.3]} 39... Rd6 {[%clk 0:00:17.5]} 40.
Rc3 {[%clk 0:00:18.7]} 40... Ke6 {[%clk 0:00:17.1]} 41. Ke3 {[%clk 0:00:18.9]}
41... Rd7 {[%clk 0:00:16]} 42. Rc4 {[%clk 0:00:18.1]} 42... f5 {[%clk
0:00:14.8]} 43. g4 {[%clk 0:00:17.3]} 43... fxg4 {[%clk 0:00:12.2]} 44. Rxg4
{[%clk 0:00:18.2]} 44... g6 {[%clk 0:00:12.1]} 45. Re4+ {[%clk 0:00:18.3]} 45...
Kf5 {[%clk 0:00:11.5]} 46. Rf4+ {[%clk 0:00:17.9]} 46... Ke5 {[%clk 0:00:11.9]}
47. Rb4 {[%clk 0:00:17.3]} 47... Rc7 {[%clk 0:00:10.3]} 48. Rb6 {[%clk
0:00:15.7]} 48... Kd5 {[%clk 0:00:08.2]} 49. a5 {[%clk 0:00:15.1]} 49... Re7+
{[%clk 0:00:06.2]} 50. Kd3 {[%clk 0:00:14.8]} 50... Rf7 {[%clk 0:00:06.7]} 51.
Ke3 {[%clk 0:00:13.3]} 51... Kc5 {[%clk 0:00:07]} 52. Re6 {[%clk 0:00:12.3]}
52... Rd7 {[%clk 0:00:06.5]} 53. Re5+ {[%clk 0:00:11.9]} 53... Kb4 {[%clk
0:00:06.7]} 54. g4 {[%clk 0:00:08.7]} 54... Kxb3 {[%clk 0:00:06.9]} 55. Kf4
{[%clk 0:00:08.8]} 55... Kc4 {[%clk 0:00:07]} 56. h4 {[%clk 0:00:08.6]} 56...
Rf7+ {[%clk 0:00:07.4]} 57. Kg5 {[%clk 0:00:08.3]} 57... Kd4 {[%clk 0:00:07.5]}
58. Re6 {[%clk 0:00:07.7]} 58... Rd7 {[%clk 0:00:05.5]} 59. Rb6 {[%clk
0:00:05.7]} 59... Rd5+ {[%clk 0:00:05.6]} 60. Kh6 {[%clk 0:00:06]} 60... Rxa5
{[%clk 0:00:05.9]} 61. Rxb7 {[%clk 0:00:03.4]} 61... Ke5 {[%clk 0:00:05.1]} 62.
Kxh7 {[%clk 0:00:03.3]} 62... Kf6 {[%clk 0:00:05.4]} 63. Rb6+ {[%clk 0:00:03.2]}
63... Ke5 {[%clk 0:00:05.3]} 64. Kxg6 {[%clk 0:00:03.4]} 64... Ra1 {[%clk
0:00:04.8]} 65. h5 {[%clk 0:00:03.3]} 65... Rh1 {[%clk 0:00:04.2]} 66. g5 {[%clk
0:00:03.5]} 66... a5 {[%clk 0:00:04.5]} 67. h6 {[%clk 0:00:03.8]} 67... a4
{[%clk 0:00:04.5]} 68. Ra6 {[%clk 0:00:04]} 68... Rh4 {[%clk 0:00:04.2]} 69. h7
{[%clk 0:00:03.7]} 69... a3 {[%clk 0:00:04.2]} 70. Kg7 {[%clk 0:00:03.8]} 70...
a2 {[%clk 0:00:04]} 71. g6 {[%clk 0:00:03.8]} 71... Kf5 {[%clk 0:00:04.9]} 72.
Rxa2 {[%clk 0:00:03.5]} 72... Rh1 {[%clk 0:00:04.6]} 73. Ra5+ {[%clk 0:00:03.2]}
73... Ke6 {[%clk 0:00:04.8]} 74. h8=Q {[%clk 0:00:02.9]} 74... Rxh8 {[%clk
0:00:04.5]} 75. Kxh8 {[%clk 0:00:03.2]} 75... Kf6 {[%clk 0:00:05.4]} 76. Kh7
{[%clk 0:00:03.6]} 1-0

[Event "Early-Titled-Tuesday-Blitz-October-17-2023"]
[Site "Chess.com"]
[Date "2023.10.17"]
[Round "4"]
[White "Fh2411"]
[Black "Chessbard1972"]
[Result "1/2-1/2"]
[WhiteElo "2535"]
[BlackElo "2366"]
[TimeControl "180+1"]
[EndTime "8:43:29 PDT"]
[Termination "Game drawn by repetition"]

1. d4 {[%clk 0:01:31.3]} 1... Nf6 {[%clk 0:02:53.3]} 2. Nf3 {[%clk 0:01:31]}
2... g6 {[%clk 0:02:52.8]} 3. c4 {[%clk 0:01:26.7]} 3... Bg7 {[%clk 0:02:52.6]}
4. Nc3 {[%clk 0:01:24.6]} 4... O-O {[%clk 0:02:52.1]} 5. Bg5 {[%clk 0:01:20.5]}
5... h6 {[%clk 0:02:50.5]} 6. Bh4 {[%clk 0:01:18.7]} 6... g5 {[%clk 0:02:50.1]}
7. Bg3 {[%clk 0:01:16.6]} 7... Nh5 {[%clk 0:02:49.9]} 8. e3 {[%clk 0:01:15.8]}
8... Nxg3 {[%clk 0:02:44.3]} 9. hxg3 {[%clk 0:01:15.1]} 9... d6 {[%clk
0:02:40.6]} 10. Bd3 {[%clk 0:01:09.8]} 10... f5 {[%clk 0:02:36.9]} 11. Qe2
{[%clk 0:00:48.2]} 11... e5 {[%clk 0:02:33.2]} 12. dxe5 {[%clk 0:00:32.2]} 12...
dxe5 {[%clk 0:02:33]} 13. O-O-O {[%clk 0:00:32.2]} 13... Qe8 {[%clk 0:02:31.1]}
14. Bc2 {[%clk 0:00:28.5]} 14... Be6 {[%clk 0:02:25.4]} 15. Nd5 {[%clk
0:00:23.3]} 15... Na6 {[%clk 0:02:24.6]} 16. a3 {[%clk 0:00:20]} 16... c6 {[%clk
0:02:22.7]} 17. Nc3 {[%clk 0:00:16.4]} 17... Qf7 {[%clk 0:02:21.3]} 18. b3
{[%clk 0:00:11.7]} 18... Nc5 {[%clk 0:02:16.5]} 19. e4 {[%clk 0:00:10.3]} 19...
f4 {[%clk 0:02:11.5]} 20. Rd6 {[%clk 0:00:09.8]} 20... Rad8 {[%clk 0:02:07.4]}
21. Qd2 {[%clk 0:00:09.3]} 21... Qe7 {[%clk 0:02:02.7]} 22. Rd1 {[%clk
0:00:09.1]} 22... Rxd6 {[%clk 0:01:56.9]} 23. Qxd6 {[%clk 0:00:10]} 23... Qxd6
{[%clk 0:01:57.4]} 24. Rxd6 {[%clk 0:00:10.8]} 24... Re8 {[%clk 0:01:43]} 25. b4
{[%clk 0:00:09.8]} 25... Nd7 {[%clk 0:01:35.9]} 26. c5 {[%clk 0:00:10.2]} 26...
Bf8 {[%clk 0:01:26.8]} 27. Rxe6 {[%clk 0:00:09.4]} 27... Rxe6 {[%clk 0:01:26.5]}
28. Bb3 {[%clk 0:00:10.3]} 28... Kf7 {[%clk 0:01:26.8]} 29. gxf4 {[%clk
0:00:09.3]} 29... gxf4 {[%clk 0:01:22.8]} 30. Nh4 {[%clk 0:00:09.5]} 30... Kf6
{[%clk 0:01:17.6]} 31. Bxe6 {[%clk 0:00:10]} 31... Kxe6 {[%clk 0:01:17.8]} 32.
Nf5 {[%clk 0:00:10.6]} 32... a5 {[%clk 0:01:11.7]} 33. Kc2 {[%clk 0:00:10.2]}
33... axb4 {[%clk 0:01:10]} 34. axb4 {[%clk 0:00:11.1]} 34... b6 {[%clk
0:01:08.2]} 35. cxb6 {[%clk 0:00:11.2]} 35... Nxb6 {[%clk 0:01:08.2]} 36. b5
{[%clk 0:00:11.4]} 36... cxb5 {[%clk 0:01:05]} 37. Nxb5 {[%clk 0:00:12.3]} 37...
Bc5 {[%clk 0:00:57.7]} 38. f3 {[%clk 0:00:12.5]} 38... Nc4 {[%clk 0:00:53.3]}
39. Nc7+ {[%clk 0:00:12.9]} 39... Kf6 {[%clk 0:00:39.6]} 40. Nd5+ {[%clk
0:00:13.3]} 40... Kg6 {[%clk 0:00:39.1]} 41. Kd3 {[%clk 0:00:13.6]} 41... Nb6
{[%clk 0:00:31]} 42. Nxb6 {[%clk 0:00:12.7]} 42... Bxb6 {[%clk 0:00:31]} 43. Kc4
{[%clk 0:00:13.4]} 43... Ba5 {[%clk 0:00:19.8]} 44. Kd5 {[%clk 0:00:14.3]} 44...
Bc3 {[%clk 0:00:19.8]} 45. Ke6 {[%clk 0:00:14.4]} 45... Kg5 {[%clk 0:00:19.1]}
46. Kf7 {[%clk 0:00:10.4]} 46... h5 {[%clk 0:00:18.9]} 47. Ke6 {[%clk
0:00:09.9]} 47... Ba1 {[%clk 0:00:17.6]} 48. Kd5 {[%clk 0:00:10.4]} 48... Bb2
{[%clk 0:00:17.6]} 49. Kc4 {[%clk 0:00:11.1]} 49... Ba1 {[%clk 0:00:17.9]} 50.
Kd3 {[%clk 0:00:11.7]} 50... Bb2 {[%clk 0:00:17.7]} 51. Nd6 {[%clk 0:00:10.9]}
51... Kh4 {[%clk 0:00:15.4]} 52. Nf5+ {[%clk 0:00:09.4]} 52... Kg5 {[%clk
0:00:15]} 53. Ke2 {[%clk 0:00:10.1]} 53... Ba1 {[%clk 0:00:14.5]} 54. Kf2 {[%clk
0:00:10.5]} 54... Bb2 {[%clk 0:00:14.9]} 55. Kg1 {[%clk 0:00:11]} 55... Ba1
{[%clk 0:00:15.2]} 56. Kh2 {[%clk 0:00:11.7]} 56... Bc3 {[%clk 0:00:15]} 57. Kh3
{[%clk 0:00:12.2]} 57... Be1 {[%clk 0:00:15]} 58. Nd6 {[%clk 0:00:12.4]} 58...
Bc3 {[%clk 0:00:12.5]} 59. Nf7+ {[%clk 0:00:12.6]} 59... Kf6 {[%clk 0:00:12.4]}
60. Nd8 {[%clk 0:00:11.4]} 60... Kg5 {[%clk 0:00:11]} 61. Nc6 {[%clk 0:00:11.6]}
61... Ba1 {[%clk 0:00:10.5]} 62. Ne7 {[%clk 0:00:12]} 62... Kf6 {[%clk
0:00:10.1]} 63. Nd5+ {[%clk 0:00:11.9]} 63... Kg5 {[%clk 0:00:10.1]} 64. Nb4
{[%clk 0:00:11.9]} 64... Bd4 {[%clk 0:00:09.8]} 65. Nd3 {[%clk 0:00:12.8]} 65...
Bc3 {[%clk 0:00:09.1]} 66. Nf2 {[%clk 0:00:12.8]} 66... Be1 {[%clk 0:00:08.1]}
67. Nd3 {[%clk 0:00:13.1]} 67... Bc3 {[%clk 0:00:08.5]} 68. Kh2 {[%clk
0:00:10.1]} 68... Ba1 {[%clk 0:00:07.6]} 69. Kh3 {[%clk 0:00:10.4]} 69... Bd4
{[%clk 0:00:07.7]} 70. Nb4 {[%clk 0:00:10.6]} 70... Bc3 {[%clk 0:00:07.7]} 71.
Nd5 {[%clk 0:00:11.2]} 71... Ba1 {[%clk 0:00:07.9]} 72. Ne7 {[%clk 0:00:11.7]}
72... Bd4 {[%clk 0:00:07.6]} 73. Nf5 {[%clk 0:00:12]} 73... Ba1 {[%clk
0:00:08.5]} 74. Nh4 {[%clk 0:00:06.9]} 74... Bc3 {[%clk 0:00:08.5]} 75. Nf5
{[%clk 0:00:07.4]} 75... Ba1 {[%clk 0:00:09.1]} 76. Nd6 {[%clk 0:00:07.5]} 76...
Bb2 {[%clk 0:00:08.9]} 77. Nc4 {[%clk 0:00:07.7]} 77... Bd4 {[%clk 0:00:09.3]}
78. Nd6 {[%clk 0:00:07.8]} 78... Ba1 {[%clk 0:00:09.1]} 79. Nf7+ {[%clk
0:00:08.4]} 79... Kf6 {[%clk 0:00:08.7]} 80. Nd6 {[%clk 0:00:08.6]} 80... Kg5
{[%clk 0:00:09.2]} 81. Nb5 {[%clk 0:00:08]} 81... Bb2 {[%clk 0:00:09.2]} 82. Nc7
{[%clk 0:00:08]} 82... Ba1 {[%clk 0:00:09.3]} 83. Ne6+ {[%clk 0:00:08.2]} 83...
Kf6 {[%clk 0:00:08.5]} 84. Nc5 {[%clk 0:00:08.7]} 84... Bd4 {[%clk 0:00:08.1]}
85. Nd3 {[%clk 0:00:07.1]} 85... Bc3 {[%clk 0:00:08]} 86. Kh4 {[%clk 0:00:06.4]}
86... Kg6 {[%clk 0:00:06.5]} 87. Kh3 {[%clk 0:00:05.5]} 87... Kg5 {[%clk
0:00:06]} 1/2-1/2

[Event "Early-Titled-Tuesday-Blitz-October-17-2023"]
[Site "Chess.com"]
[Date "2023.10.17"]
[Round "4"]
[White "Bala-Afiada"]
[Black "cycygogne"]
[Result "1/2-1/2"]
[WhiteElo "1911"]
[BlackElo "2258"]
[TimeControl "180+1"]
[EndTime "8:43:42 PDT"]
[Termination "Game drawn by stalemate"]

1. d4 {[%clk 0:03:00.9]} 1... Nf6 {[%clk 0:02:59.2]} 2. c4 {[%clk 0:03:01.1]}
2... c5 {[%clk 0:02:59.9]} 3. d5 {[%clk 0:03:01.4]} 3... e6 {[%clk 0:03:00.5]}
4. Nc3 {[%clk 0:03:01.3]} 4... exd5 {[%clk 0:03:01.2]} 5. cxd5 {[%clk
0:03:02.2]} 5... d6 {[%clk 0:03:01.7]} 6. Nf3 {[%clk 0:03:02.6]} 6... g6 {[%clk
0:03:01.8]} 7. g3 {[%clk 0:02:54.4]} 7... Bg7 {[%clk 0:02:59.6]} 8. Bg2 {[%clk
0:02:55.1]} 8... O-O {[%clk 0:02:59.4]} 9. O-O {[%clk 0:02:55.7]} 9... a6 {[%clk
0:02:59.7]} 10. a4 {[%clk 0:02:55.6]} 10... Re8 {[%clk 0:02:59.2]} 11. Bf4
{[%clk 0:02:51.7]} 11... Nh5 {[%clk 0:02:52.4]} 12. Bg5 {[%clk 0:02:46.2]} 12...
Bf6 {[%clk 0:02:44.3]} 13. Bxf6 {[%clk 0:02:45.6]} 13... Qxf6 {[%clk 0:02:45.2]}
14. Nd2 {[%clk 0:02:43.7]} 14... Bg4 {[%clk 0:02:14.2]} 15. Nc4 {[%clk
0:02:18.9]} 15... Qe7 {[%clk 0:01:54]} 16. f3 {[%clk 0:02:07.5]} 16... Bd7
{[%clk 0:01:39.8]} 17. e4 {[%clk 0:02:06.7]} 17... f5 {[%clk 0:01:35.3]} 18. Re1
{[%clk 0:01:57.2]} 18... f4 {[%clk 0:01:29.4]} 19. g4 {[%clk 0:01:50.5]} 19...
Nf6 {[%clk 0:01:28.5]} 20. e5 {[%clk 0:01:47.8]} 20... dxe5 {[%clk 0:01:27.5]}
21. Nxe5 {[%clk 0:01:42]} 21... Qd6 {[%clk 0:01:19.7]} 22. Nc4 {[%clk 0:01:30]}
22... Qf8 {[%clk 0:01:13.4]} 23. Rxe8 {[%clk 0:01:29]} 23... Qxe8 {[%clk
0:01:09.7]} 24. Qd2 {[%clk 0:01:22.3]} 24... Qf8 {[%clk 0:00:44.4]} 25. Qxf4
{[%clk 0:01:12.8]} 25... Be8 {[%clk 0:00:34.9]} 26. Re1 {[%clk 0:01:01.8]} 26...
Nbd7 {[%clk 0:00:34.5]} 27. Qd6 {[%clk 0:00:58]} 27... b5 {[%clk 0:00:31.5]} 28.
Qxf8+ {[%clk 0:00:56.7]} 28... Kxf8 {[%clk 0:00:28.8]} 29. axb5 {[%clk
0:00:57.1]} 29... axb5 {[%clk 0:00:29.7]} 30. Nxb5 {[%clk 0:00:57.4]} 30... Ra2
{[%clk 0:00:30]} 31. Nbd6 {[%clk 0:00:41]} 31... Bf7 {[%clk 0:00:24.8]} 32. Nxf7
{[%clk 0:00:37.8]} 32... Kxf7 {[%clk 0:00:25.7]} 33. Nd6+ {[%clk 0:00:36.9]}
33... Kf8 {[%clk 0:00:25.7]} 34. Re2 {[%clk 0:00:35.4]} 34... Nxd5 {[%clk
0:00:22.4]} 35. Re8+ {[%clk 0:00:26.6]} 35... Kg7 {[%clk 0:00:22.2]} 36. Re2
{[%clk 0:00:22]} 36... Kf8 {[%clk 0:00:18.1]} 37. g5 {[%clk 0:00:21.2]} 37...
N7b6 {[%clk 0:00:13.6]} 38. Re8+ {[%clk 0:00:20.1]} 38... Kg7 {[%clk 0:00:13.6]}
39. Re2 {[%clk 0:00:20.4]} 39... Nf4 {[%clk 0:00:12.8]} 40. Re7+ {[%clk
0:00:18.1]} 40... Kf8 {[%clk 0:00:12.6]} 41. Rf7+ {[%clk 0:00:18.3]} 41... Kg8
{[%clk 0:00:12.4]} 42. Rxf4 {[%clk 0:00:18.9]} 42... Rxb2 {[%clk 0:00:11.7]} 43.
h3 {[%clk 0:00:18.5]} 43... c4 {[%clk 0:00:10.9]} 44. Nxc4 {[%clk 0:00:18.2]}
44... Rb4 {[%clk 0:00:10.8]} 45. Nxb6 {[%clk 0:00:15]} 45... Rxf4 {[%clk
0:00:10.6]} 46. Kf2 {[%clk 0:00:15.5]} 46... Rb4 {[%clk 0:00:10.4]} 47. Nd5
{[%clk 0:00:15.5]} 47... Rb2+ {[%clk 0:00:10.7]} 48. Kg3 {[%clk 0:00:16]} 48...
Rb3 {[%clk 0:00:10.8]} 49. Nf6+ {[%clk 0:00:16.5]} 49... Kg7 {[%clk 0:00:11]}
50. Ne8+ {[%clk 0:00:17]} 50... Kf7 {[%clk 0:00:10.9]} 51. Nf6 {[%clk
0:00:17.9]} 51... Rb2 {[%clk 0:00:10.1]} 52. Bf1 {[%clk 0:00:17.6]} 52... Kg7
{[%clk 0:00:10.1]} 53. Bc4 {[%clk 0:00:17.6]} 53... Rc2 {[%clk 0:00:09.9]} 54.
Bd5 {[%clk 0:00:17.4]} 54... Rd2 {[%clk 0:00:09.9]} 55. Be4 {[%clk 0:00:17.9]}
55... Rd1 {[%clk 0:00:10]} 56. Ne8+ {[%clk 0:00:18.2]} 56... Kf7 {[%clk
0:00:09.5]} 57. Nf6 {[%clk 0:00:17.7]} 57... Kg7 {[%clk 0:00:09.8]} 58. Kf4
{[%clk 0:00:14.9]} 58... Rh1 {[%clk 0:00:09.5]} 59. Kg4 {[%clk 0:00:14.7]} 59...
Rg1+ {[%clk 0:00:09.7]} 60. Kh4 {[%clk 0:00:15.2]} 60... Rh1 {[%clk 0:00:09.2]}
61. Ng4 {[%clk 0:00:15]} 61... Rg1 {[%clk 0:00:09]} 62. Ne5 {[%clk 0:00:14.2]}
62... Re1 {[%clk 0:00:08.2]} 63. Nd7 {[%clk 0:00:13.7]} 63... Rh1 {[%clk
0:00:07.6]} 64. Nc5 {[%clk 0:00:13.8]} 64... Re1 {[%clk 0:00:07.8]} 65. Ne6+
{[%clk 0:00:14.3]} 65... Kf7 {[%clk 0:00:07.5]} 66. Nf4 {[%clk 0:00:13.6]} 66...
Kg7 {[%clk 0:00:07.2]} 67. Nd5 {[%clk 0:00:14]} 67... Rd1 {[%clk 0:00:07.3]} 68.
Kg4 {[%clk 0:00:14.6]} 68... Rh1 {[%clk 0:00:07.2]} 69. Bd3 {[%clk 0:00:12.7]}
69... Rg1+ {[%clk 0:00:06.8]} 70. Kf4 {[%clk 0:00:12.9]} 70... Rd1 {[%clk
0:00:06.7]} 71. Be4 {[%clk 0:00:12.7]} 71... Rh1 {[%clk 0:00:06.2]} 72. Kg3
{[%clk 0:00:12.5]} 72... Rg1+ {[%clk 0:00:06.6]} 73. Kh2 {[%clk 0:00:11.4]}
73... Rd1 {[%clk 0:00:06.5]} 74. Nf4 {[%clk 0:00:11.7]} 74... Rd2+ {[%clk
0:00:06.5]} 75. Kg3 {[%clk 0:00:12]} 75... Rd1 {[%clk 0:00:06.9]} 76. Kf2 {[%clk
0:00:12.4]} 76... Ra1 {[%clk 0:00:05.4]} 77. Ke3 {[%clk 0:00:12.8]} 77... Rh1
{[%clk 0:00:05.2]} 78. Kd4 {[%clk 0:00:12.7]} 78... Rd1+ {[%clk 0:00:05.2]} 79.
Ke5 {[%clk 0:00:12.6]} 79... Ra1 {[%clk 0:00:05.1]} 80. Bd5 {[%clk 0:00:12.6]}
80... Ra5 {[%clk 0:00:04.3]} 81. Ne6+ {[%clk 0:00:12.1]} 81... Kh8 {[%clk
0:00:03.8]} 82. Nf8 {[%clk 0:00:11.1]} 82... Kg7 {[%clk 0:00:03.3]} 83. Ne6+
{[%clk 0:00:10.9]} 83... Kh8 {[%clk 0:00:03.6]} 84. h4 {[%clk 0:00:11.8]} 84...
Rb5 {[%clk 0:00:02.3]} 85. Nc7 {[%clk 0:00:11.7]} 85... Ra5 {[%clk 0:00:02.6]}
86. Ne8 {[%clk 0:00:11.7]} 86... Rb5 {[%clk 0:00:01.8]} 87. Nf6 {[%clk
0:00:12.6]} 87... Ra5 {[%clk 0:00:02.1]} 88. f4 {[%clk 0:00:13.3]} 88... Kg7
{[%clk 0:00:02.5]} 89. f5 {[%clk 0:00:13.4]} 89... gxf5 {[%clk 0:00:02.5]} 90.
Kxf5 {[%clk 0:00:14.2]} 90... Rb5 {[%clk 0:00:02.3]} 91. Ke6 {[%clk 0:00:14.7]}
91... Ra5 {[%clk 0:00:02.6]} 92. Ne8+ {[%clk 0:00:15.1]} 92... Kh8 {[%clk
0:00:02.5]} 93. Nd6 {[%clk 0:00:16]} 93... Kg7 {[%clk 0:00:02.6]} 94. h5 {[%clk
0:00:16.6]} 94... h6 {[%clk 0:00:02.4]} 95. Nf5+ {[%clk 0:00:16.8]} 95... Kh7
{[%clk 0:00:02.3]} 96. Nxh6 {[%clk 0:00:17.7]} 96... Ra6+ {[%clk 0:00:02]} 97.
Kf5 {[%clk 0:00:17.9]} 97... Rxh6 {[%clk 0:00:01.6]} 98. gxh6 {[%clk 0:00:18]}
98... Kxh6 {[%clk 0:00:02.5]} 99. Bf7 {[%clk 0:00:18]} 99... Kh7 {[%clk
0:00:03.1]} 100. Kf6 {[%clk 0:00:18.6]} 100... Kh8 {[%clk 0:00:03.7]} 101. h6
{[%clk 0:00:18.2]} 101... Kh7 {[%clk 0:00:04.6]} 102. Kg5 {[%clk 0:00:17.4]}
102... Kh8 {[%clk 0:00:05.5]} 103. Kg6 {[%clk 0:00:17.8]} 1/2-1/2